[Event "FIDE Grand Swiss 2023"]
[Site "Villa Marina, Douglas, Isle of Man, Isle Of Man"]
[Date "2023.11.05"]
[Round "11.11"]
[White "Wojtaszek, Radoslaw"]
[Black "Sevian, Samuel"]
[Result "1/2-1/2"]
[TimeControl "40/90 + 30 + 30s/move"]
[WhiteFideId "1118358"]
[BlackFideId "2040506"]
[WhiteElo "2668"]
[BlackElo "2698"]

1. d4 {[%clk 01:40:57]} {[%emt 00:00:02]} Nf6 {[%clk 01:40:07]} {[%emt
00:00:54]} 2. c4 {[%clk 01:41:21]} {[%emt 00:00:05]} e6 {[%clk 01:40:09]}
{[%emt 00:00:29]} 3. Nf3 {[%clk 01:41:44]} {[%emt 00:00:07]} d5 {[%clk
01:40:32]} {[%emt 00:00:07]} 4. g3 {[%clk 01:42:07]} {[%emt 00:00:06]} Bb4+
{[%clk 01:40:53]} {[%emt 00:00:10]} 5. Bd2 {[%clk 01:42:31]} {[%emt 00:00:06]}
a5 {[%clk 01:41:07]} {[%emt 00:00:16]} 6. Bg2 {[%clk 01:42:36]} {[%emt
00:00:24]} O-O {[%clk 01:41:30]} {[%emt 00:00:08]} 7. Qc2 {[%clk 01:42:26]}
{[%emt 00:00:39]} c5 {[%clk 01:41:43]} {[%emt 00:00:18]} 8. cxd5 {[%clk
01:39:19]} {[%emt 00:03:37]} cxd4 {[%clk 01:41:43]} {[%emt 00:00:30]} 9. Nxd4
{[%clk 01:39:41]} {[%emt 00:00:07]} Qb6 {[%clk 01:41:46]} {[%emt 00:00:27]} 10.
e3 {[%clk 01:39:24]} {[%emt 00:00:48]} exd5 {[%clk 01:42:10]} {[%emt 00:00:06]}
11. a3 {[%clk 01:30:52]} {[%emt 00:09:02]} Bxd2+ {[%clk 01:19:42]} {[%emt
00:22:58]} 12. Nxd2 {[%clk 01:30:57]} {[%emt 00:00:23]} Nc6 {[%clk 01:19:47]}
{[%emt 00:00:27]} 13. N2f3 {[%clk 01:29:23]} {[%emt 00:02:04]} Bg4 {[%clk
01:18:23]} {[%emt 00:01:53]} 14. O-O {[%clk 01:29:42]} {[%emt 00:00:10]} Nxd4
{[%clk 01:10:52]} {[%emt 00:08:02]} 15. Nxd4 {[%clk 01:29:56]} {[%emt
00:00:16]} Rfc8 {[%clk 01:11:08]} {[%emt 00:00:15]} 16. Qb3 {[%clk 01:14:39]}
{[%emt 00:15:47]} Qxb3 {[%clk 01:04:11]} {[%emt 00:07:26]} 17. Nxb3 {[%clk
01:14:16]} {[%emt 00:00:53]} Rc2 {[%clk 01:04:35]} {[%emt 00:00:06]} 18. Rab1
{[%clk 01:07:57]} {[%emt 00:06:50]} Bh5 {[%clk 01:00:55]} {[%emt 00:04:10]} 19.
Nd4 {[%clk 01:05:39]} {[%emt 00:02:48]} Rd2 {[%clk 00:59:32]} {[%emt 00:01:54]}
20. Nb3 {[%clk 00:57:41]} {[%emt 00:08:27]} Rc2 {[%clk 00:59:44]} {[%emt
00:00:18]} 21. Nd4 {[%clk 00:57:37]} {[%emt 00:00:33]} Rd2 {[%clk 01:00:09]}
{[%emt 00:00:06]} 22. Nb3 {[%clk 00:58:02]} {[%emt 00:00:04]} Rc2 {[%emt
00:00:27]} 1/2-1/2

[Event "FIDE Grand Swiss 2023"]
[Site "Villa Marina, Douglas, Isle of Man, Isle Of Man"]
[Date "2023.11.05"]
[Round "11.12"]
[White "Sindarov, Javokhir"]
[Black "Artemiev, Vladislav"]
[Result "1-0"]
[TimeControl "40/90 + 30 + 30s/move"]
[WhiteFideId "14205483"]
[BlackFideId "24101605"]
[WhiteElo "2658"]
[BlackElo "2697"]

1. e4 {[%clk 01:40:52]} {[%emt 00:00:07]} e5 {[%clk 01:39:46]} {[%emt
00:01:15]} 2. Nf3 {[%clk 01:41:14]} {[%emt 00:00:08]} Nc6 {[%clk 01:39:55]}
{[%emt 00:00:21]} 3. Bb5 {[%clk 01:41:38]} {[%emt 00:00:06]} Nf6 {[%clk
01:39:33]} {[%emt 00:00:52]} 4. d3 {[%clk 01:40:58]} {[%emt 00:01:10]} d6
{[%clk 01:39:42]} {[%emt 00:00:20]} 5. O-O {[%clk 01:41:18]} {[%emt 00:00:11]}
Be7 {[%clk 01:28:47]} {[%emt 00:11:24]} 6. c3 {[%clk 01:41:21]} {[%emt
00:00:27]} O-O {[%clk 01:28:39]} {[%emt 00:00:39]} 7. Re1 {[%clk 01:41:32]}
{[%emt 00:00:19]} a6 {[%clk 01:26:34]} {[%emt 00:02:35]} 8. Ba4 {[%clk
01:41:57]} {[%emt 00:00:05]} Re8 {[%clk 01:18:30]} {[%emt 00:08:33]} 9. h3
{[%clk 01:42:03]} {[%emt 00:00:25]} b5 {[%clk 01:02:00]} {[%emt 00:17:00]} 10.
Bc2 {[%clk 01:42:15]} {[%emt 00:00:18]} Bf8 {[%clk 00:55:53]} {[%emt 00:06:37]}
11. Bg5 {[%clk 01:41:56]} {[%emt 00:00:47]} h6 {[%clk 00:52:33]} {[%emt
00:03:52]} 12. Bh4 {[%clk 01:42:20]} {[%emt 00:00:06]} Bb7 {[%clk 00:49:10]}
{[%emt 00:03:52]} 13. a4 {[%clk 01:29:11]} {[%emt 00:13:40]} Nb8 {[%clk
00:42:38]} {[%emt 00:07:02]} 14. Nbd2 {[%clk 01:28:03]} {[%emt 00:01:37]} Nbd7
{[%clk 00:42:39]} {[%emt 00:00:28]} 15. b4 {[%clk 01:27:49]} {[%emt 00:00:45]}
c5 {[%clk 00:29:54]} {[%emt 00:13:15]} 16. bxc5 {[%clk 01:23:39]} {[%emt
00:04:40]} dxc5 {[%clk 00:22:41]} {[%emt 00:07:44]} 17. d4 {[%clk 01:21:22]}
{[%emt 00:02:47]} cxd4 {[%clk 00:17:24]} {[%emt 00:05:47]} 18. cxd4 {[%clk
01:21:27]} {[%emt 00:00:25]} g5 {[%clk 00:12:56]} {[%emt 00:04:58]} 19. Bg3
{[%clk 01:20:56]} {[%emt 00:01:01]} exd4 {[%clk 00:13:19]} {[%emt 00:00:07]} 20.
e5 {[%clk 01:15:39]} {[%emt 00:05:47]} Nh5 {[%clk 00:11:36]} {[%emt 00:02:12]}
21. Bh2 {[%clk 01:06:37]} {[%emt 00:09:31]} d3 {[%clk 00:04:38]} {[%emt
00:07:29]} 22. Bxd3 {[%clk 01:05:44]} {[%emt 00:01:24]} Nc5 {[%clk 00:05:04]}
{[%emt 00:00:04]} 23. Bb1 {[%clk 01:04:07]} {[%emt 00:02:05]} Rc8 {[%clk
00:02:20]} {[%emt 00:03:15]} 24. axb5 {[%clk 01:03:27]} {[%emt 00:01:10]} axb5
{[%clk 00:02:25]} {[%emt 00:00:25]} 25. Qe2 {[%clk 01:03:25]} {[%emt 00:00:31]}
Ne6 {[%clk 00:00:56]} {[%emt 00:02:01]} 26. Ne4 {[%clk 01:02:43]} {[%emt
00:01:12]} Nef4 {[%clk 00:00:38]} {[%emt 00:00:48]} 27. Qxb5 {[%clk 01:02:07]}
{[%emt 00:01:06]} Qd5 {[%clk 00:00:33]} {[%emt 00:00:35]} 28. Qf1 {[%clk
01:00:37]} {[%emt 00:01:56]} Qe6 {[%clk 00:00:33]} {[%emt 00:00:33]} 29. g4
{[%clk 00:52:06]} {[%emt 00:09:01]} Bb4 {[%clk 00:00:42]} {[%emt 00:00:22]} 30.
Ba2 {[%clk 00:50:22]} {[%emt 00:02:13]} Qg6 {[%clk 00:00:32]} {[%emt 00:00:39]}
31. gxh5 {[%clk 00:50:15]} {[%emt 00:00:38]} Qf5 {[%clk 00:00:36]} {[%emt
00:00:26]} 32. Nf6+ {[%clk 00:49:21]} {[%emt 00:01:23]} Kf8 {[%clk 00:00:54]}
{[%emt 00:00:13]} 33. Bxf4 {[%clk 00:46:43]} {[%emt 00:03:09]} Bxe1 {[%clk
00:00:33]} {[%emt 00:00:51]} 34. Nxe1 {[%clk 00:45:35]} {[%emt 00:01:38]} gxf4
{[%clk 00:00:49]} {[%emt 00:00:14]} 35. Qd3 {[%clk 00:35:56]} {[%emt 00:10:09]}
Qxd3 {[%clk 00:00:32]} {[%emt 00:00:46]} 36. Nxd3 {[%clk 00:36:21]} {[%emt
00:00:04]} Red8 {[%clk 00:00:50]} {[%emt 00:00:13]} 37. Nxf4 {[%clk 00:36:46]}
{[%emt 00:00:05]} Rc5 {[%clk 00:00:33]} {[%emt 00:00:47]} 38. Bd5 {[%clk
00:36:38]} {[%emt 00:00:38]} Bxd5 {[%clk 00:00:35]} {[%emt 00:00:28]} 39. Rd1
{[%clk 00:37:04]} {[%emt 00:00:04]} Rc3 {[%clk 00:00:33]} {[%emt 00:00:32]} 40.
N6xd5 {[%clk 00:36:05]} {[%emt 00:01:29]} Rc4 {[%clk 00:01:01]} {[%emt
00:00:02]} 41. e6 {[%clk 00:35:29]} {[%emt 00:01:06]} Re4 {[%clk 00:01:23]}
{[%emt 00:00:08]} 42. Ra1 {[%clk 00:35:38]} {[%emt 00:00:17]} fxe6 {[%clk
00:50:08]} {[%emt 00:01:49]} 43. Ng6+ {[%clk 01:25:57]} {[%emt 00:00:11]} Kg7
{[%clk 00:50:29]} {[%emt 00:00:09]} 44. Ra7+ {[%clk 01:26:22]} {[%emt
00:00:05]} 1-0

[Event "FIDE Grand Swiss 2023"]
[Site "Villa Marina, Douglas, Isle of Man, Isle Of Man"]
[Date "2023.11.05"]
[Round "11.13"]
[White "Fedoseev, Vladimir"]
[Black "Anton Guijarro, David"]
[Result "1/2-1/2"]
[TimeControl "40/90 + 30 + 30s/move"]
[WhiteClock "00:10:03"]
[BlackClock "00:00:47"]
[WhiteFideId "24130737"]
[BlackFideId "2285525"]
[WhiteElo "2691"]
[BlackElo "2653"]

1. d4 {[%clk 01:40:57]} {[%emt 00:00:02]} d5 {[%clk 01:40:49]} {[%emt
00:00:11]} 2. c4 {[%clk 01:41:21]} {[%emt 00:00:06]} e6 {[%clk 01:41:11]}
{[%emt 00:00:08]} 3. Nf3 {[%clk 01:41:43]} {[%emt 00:00:08]} dxc4 {[%clk
01:40:31]} {[%emt 00:01:11]} 4. e3 {[%clk 01:41:42]} {[%emt 00:00:31]} Nf6
{[%clk 01:40:52]} {[%emt 00:00:08]} 5. Bxc4 {[%clk 01:42:06]} {[%emt 00:00:06]}
c5 {[%clk 01:41:16]} {[%emt 00:00:06]} 6. O-O {[%clk 01:42:27]} {[%emt
00:00:08]} Nc6 {[%clk 01:41:38]} {[%emt 00:00:08]} 7. Re1 {[%clk 01:35:27]}
{[%emt 00:07:31]} Be7 {[%clk 01:40:08]} {[%emt 00:02:00]} 8. dxc5 {[%clk
01:34:24]} {[%emt 00:01:33]} Qxd1 {[%clk 01:38:58]} {[%emt 00:01:41]} 9. Rxd1
{[%clk 01:34:53]} {[%emt 00:00:01]} Bxc5 {[%clk 01:38:53]} {[%emt 00:00:35]} 10.
a3 {[%clk 01:30:56]} {[%emt 00:04:27]} O-O {[%clk 01:38:30]} {[%emt 00:00:52]}
11. b4 {[%clk 01:28:24]} {[%emt 00:03:02]} Be7 {[%clk 01:38:52]} {[%emt
00:00:08]} 12. Bb2 {[%clk 01:28:48]} {[%emt 00:00:06]} b6 {[%clk 01:38:59]}
{[%emt 00:00:23]} 13. Nbd2 {[%clk 01:29:12]} {[%emt 00:00:06]} Bb7 {[%clk
01:39:14]} {[%emt 00:00:15]} 14. Kf1 {[%clk 01:29:36]} {[%emt 00:00:05]} Rfd8
{[%clk 01:38:37]} {[%emt 00:01:07]} 15. Ke2 {[%clk 01:29:43]} {[%emt 00:00:24]}
Rac8 {[%clk 01:37:08]} {[%emt 00:01:59]} 16. h3 {[%clk 01:29:19]} {[%emt
00:00:54]} h6 {[%clk 01:36:38]} {[%emt 00:01:01]} 17. Rac1 {[%clk 01:29:05]}
{[%emt 00:00:44]} Kf8 {[%clk 01:36:36]} {[%emt 00:00:32]} 18. g4 {[%clk
01:28:51]} {[%emt 00:00:43]} Bd6 {[%clk 01:25:43]} {[%emt 00:11:23]} 19. Bd3
{[%clk 01:27:32]} {[%emt 00:01:50]} Be7 {[%clk 01:24:13]} {[%emt 00:02:00]} 20.
Bc4 {[%clk 01:19:15]} {[%emt 00:08:47]} Bd6 {[%clk 01:24:01]} {[%emt 00:00:41]}
21. Bd3 {[%clk 01:13:23]} {[%emt 00:06:22]} Be7 {[%clk 01:24:12]} {[%emt
00:00:19]} 22. Bb5 {[%clk 01:08:55]} {[%emt 00:04:57]} Rd5 {[%clk 01:10:24]}
{[%emt 00:14:19]} 23. Bc4 {[%clk 01:07:50]} {[%emt 00:01:35]} Rdd8 {[%clk
01:10:44]} {[%emt 00:00:10]} 24. Rg1 {[%clk 01:04:38]} {[%emt 00:03:41]} Nd7
{[%clk 00:59:11]} {[%emt 00:12:03]} 25. Rc2 {[%clk 00:56:06]} {[%emt 00:09:01]}
Bf6 {[%clk 00:44:54]} {[%emt 00:14:48]} 26. Bxf6 {[%clk 00:55:27]} {[%emt
00:01:10]} Nxf6 {[%clk 00:40:19]} {[%emt 00:05:04]} 27. Rgc1 {[%clk 00:55:51]}
{[%emt 00:00:07]} Nb8 {[%clk 00:34:25]} {[%emt 00:06:24]} 28. Ne5 {[%clk
00:49:45]} {[%emt 00:06:36]} Ne8 {[%clk 00:33:07]} {[%emt 00:01:47]} 29. f4
{[%clk 00:44:32]} {[%emt 00:05:43]} Nd6 {[%clk 00:31:27]} {[%emt 00:02:11]} 30.
Bd3 {[%clk 00:44:21]} {[%emt 00:00:42]} Rxc2 {[%clk 00:30:44]} {[%emt
00:01:13]} 31. Rxc2 {[%clk 00:44:46]} {[%emt 00:00:05]} Rc8 {[%clk 00:31:02]}
{[%emt 00:00:11]} 32. Rxc8+ {[%clk 00:45:06]} {[%emt 00:00:10]} Bxc8 {[%clk
00:30:51]} {[%emt 00:00:42]} 33. e4 {[%clk 00:41:46]} {[%emt 00:03:49]} Ke7
{[%clk 00:30:36]} {[%emt 00:00:45]} 34. Ndf3 {[%clk 00:34:26]} {[%emt
00:07:50]} Bb7 {[%clk 00:19:27]} {[%emt 00:11:40]} 35. Ke3 {[%clk 00:34:44]}
{[%emt 00:00:10]} Nd7 {[%clk 00:18:15]} {[%emt 00:01:43]} 36. h4 {[%clk
00:27:38]} {[%emt 00:07:35]} Nxe5 {[%clk 00:13:15]} {[%emt 00:05:31]} 37. Nxe5
{[%clk 00:25:52]} {[%emt 00:02:16]} Ne8 {[%clk 00:12:03]} {[%emt 00:01:42]} 38.
a4 {[%clk 00:20:07]} {[%emt 00:06:14]} Nf6 {[%clk 00:07:01]} {[%emt 00:05:32]}
39. Kd4 {[%clk 00:13:36]} {[%emt 00:07:02]} Nd7 {[%clk 00:05:31]} {[%emt
00:02:00]} 40. Nc4 {[%clk 00:11:50]} {[%emt 00:02:16]} f6 {[%clk 00:02:03]}
{[%emt 00:03:58]} 41. g5 {[%clk 00:42:32]} {[%emt 00:19:48]} hxg5 {[%clk
00:48:01]} {[%emt 00:04:33]} 42. hxg5 {[%clk 00:42:43]} {[%emt 00:00:19]} Bc6
{[%clk 00:27:48]} {[%emt 00:20:42]} 43. b5 {[%clk 00:35:57]} {[%emt 00:07:16]}
Bb7 {[%clk 00:25:24]} {[%emt 00:02:54]} 44. Bc2 {[%clk 00:32:44]} {[%emt
00:03:43]} a6 {[%clk 00:22:28]} {[%emt 00:03:25]} 45. Bd1 {[%clk 00:28:46]}
{[%emt 00:04:29]} axb5 {[%clk 00:16:45]} {[%emt 00:06:14]} 46. axb5 {[%clk
00:28:57]} {[%emt 00:00:18]} Ba8 {[%clk 00:16:52]} {[%emt 00:00:23]} 47. Bg4
{[%clk 00:21:20]} {[%emt 00:08:07]} Bb7 {[%clk 00:17:10]} {[%emt 00:00:12]} 48.
g6 {[%clk 00:20:09]} {[%emt 00:01:40]} Ba8 {[%clk 00:15:50]} {[%emt 00:01:50]}
49. Ke3 {[%clk 00:15:26]} {[%emt 00:05:13]} Bb7 {[%clk 00:15:44]} {[%emt
00:00:37]} 50. Bh3 {[%clk 00:14:33]} {[%emt 00:01:22]} Ba8 {[%clk 00:15:45]}
{[%emt 00:00:30]} 51. f5 {[%clk 00:14:15]} {[%emt 00:00:48]} e5 {[%clk
00:15:50]} {[%emt 00:00:25]} 52. Bg2 {[%clk 00:14:38]} {[%emt 00:00:08]} Kd8
{[%clk 00:14:37]} {[%emt 00:01:43]} 53. Bf3 {[%clk 00:14:36]} {[%emt 00:00:31]}
Kc7 {[%clk 00:13:23]} {[%emt 00:01:45]} 54. Bd1 {[%clk 00:14:55]} {[%emt
00:00:10]} Bb7 {[%clk 00:13:09]} {[%emt 00:00:45]} 55. Bc2 {[%clk 00:15:15]}
{[%emt 00:00:10]} Bc8 {[%clk 00:10:19]} {[%emt 00:03:20]} 56. Nb2 {[%clk
00:14:57]} {[%emt 00:00:48]} Bb7 {[%clk 00:08:34]} {[%emt 00:02:15]} 57. Na4
{[%clk 00:14:46]} {[%emt 00:00:40]} Nc5 {[%clk 00:07:11]} {[%emt 00:01:54]} 58.
Nc3 {[%clk 00:15:08]} {[%emt 00:00:09]} Kd6 {[%clk 00:05:51]} {[%emt 00:01:50]}
59. Bb1 {[%clk 00:08:29]} {[%emt 00:07:09]} Nb3 {[%clk 00:05:38]} {[%emt
00:00:43]} 60. Ba2 {[%clk 00:08:34]} {[%emt 00:00:24]} Nd4 {[%clk 00:05:45]}
{[%emt 00:00:24]} 61. Bc4 {[%clk 00:06:12]} {[%emt 00:02:52]} Kc5 {[%clk
00:04:37]} {[%emt 00:01:38]} 62. Bf1 {[%clk 00:08:02]} {[%emt 00:13:40]} Kb4
{[%clk 00:14:55]} {[%emt 00:05:12]} 63. Na2+ {[%clk 00:08:19]} {[%emt
00:00:12]} Kb3 {[%clk 00:09:42]} {[%emt 00:05:43]} 64. Nc1+ {[%clk 00:08:42]}
{[%emt 00:00:07]} Kc3 {[%clk 00:08:10]} {[%emt 00:02:02]} 65. Na2+ {[%clk
00:09:06]} {[%emt 00:00:07]} Kb2 {[%clk 00:05:33]} {[%emt 00:03:07]} 66. Nb4
{[%clk 00:09:33]} {[%emt 00:00:03]} Kb3 {[%clk 00:05:30]} {[%emt 00:00:33]} 67.
Nd3 {[%clk 00:08:39]} {[%emt 00:01:24]} Nc2 {[%clk 00:03:28]} {[%emt 00:02:33]}
68. Kf3 {[%clk 00:09:01]} {[%emt 00:00:07]} Nd4 {[%clk 00:03:04]} {[%emt
00:00:54]} 69. Ke3 {[%clk 00:09:24]} {[%emt 00:00:07]} Nc2 {[%clk 00:01:00]}
{[%emt 00:02:34]} 70. Kf3 {[%clk 00:09:48]} {[%emt 00:00:06]} Nd4 {[%clk
00:00:37]} {[%emt 00:00:54]} 71. Ke3 {[%clk 00:10:11]} {[%emt 00:00:06]} Nc2
{[%clk 00:00:47]} {[%emt 00:00:20]} 1/2-1/2